fUSD/lending_fUSD_20260527
["ID","MTS","AMOUNT","RATE_DAILY","PERIOD"]
[423134851,1779880235000,-239.61,0.00034986,10]
[423134845,1779880235000,-869.953,0.000349,40]
[423134849,1779880235000,-1493.45372479,0.000349,2]
[423134848,1779880235000,-1320.3753,0.000349,2]
[423134846,1779880235000,-18422.22455802,0.000349,2]
[423134834,1779880235000,-219.33,0.00034475,120]
[423134844,1779880235000,-334.28,0.00034813,2]
[423134831,1779880235000,-1852.42,0.00034095,2]
[423134836,1779880235000,-150.00000001,0.00034521,7]
[423134832,1779880235000,-2000.0,0.00034247,30]
[423134835,1779880235000,-2000.0,0.000345,7]
[423134833,1779880235000,-798.08383,0.000344,10]
[423134837,1779880235000,-269.3732072,0.00034521,7]
[423134830,1779880235000,-334.28,0.00033964,2]
[423134850,1779880235000,-14312.64751565,0.00034981,2]
[423134840,1779880235000,-350.0,0.00034575,2]
[423134839,1779880235000,-150.0,0.00034521,7]
[423134847,1779880235000,-700.0,0.000349,12]
[423134842,1779880235000,-428.913996,0.00034786,120]
[423134841,1779880235000,-200.0,0.000347,12]
[423134843,1779880235000,-400.0,0.000348,12]
[423134884,1779880238000,-329.16,0.00035,2]
[423134883,1779880238000,-3797.4,0.00035,2]
[423134881,1779880238000,-319.28,0.000319,2]
[423134882,1779880238000,-240.25,0.00035,2]
[423134902,1779880240000,-313.93027546,0.00034899,7]
[423134892,1779880240000,-515.12873387,0.00034899,2]
[423134893,1779880240000,-515.12873387,0.00034899,2]
[423134895,1779880240000,-515.12873387,0.00034899,2]
[423134896,1779880240000,-701.52644968,0.00034899,7]
[423134898,1779880240000,-701.52644968,0.00034899,7]
[423134900,1779880240000,-701.52644968,0.00034899,7]
[423134899,1779880240000,-515.12873387,0.00034899,2]
[423134894,1779880240000,-701.52644968,0.00034899,7]
[423134901,1779880240000,-515.12873387,0.00034899,2]
[423134903,1779880240000,-387.59617422,0.00034899,7]
[423134897,1779880240000,-515.12873387,0.00034899,2]
[423134911,1779880240000,-410.46628024,0.00034899,7]
[423134906,1779880240000,-701.52644968,0.00034899,7]
[423134907,1779880240000,-515.12873387,0.00034899,2]
[423134909,1779880240000,-515.12873387,0.00034899,2]
[423134908,1779880240000,-701.52644968,0.00034899,7]
[423134904,1779880240000,-515.12873387,0.00034899,2]
[423134905,1779880240000,-515.12873387,0.00034899,2]
[423134910,1779880240000,-515.12873387,0.00034899,2]
[423134929,1779880243000,-515.12873387,0.00034899,2]
[423134934,1779880243000,-515.12873387,0.00034899,2]
[423134928,1779880243000,-515.12873387,0.00034899,2]
[423134926,1779880243000,-515.12873387,0.00034899,2]
[423134927,1779880243000,-701.52644968,0.00034899,7]
[423134937,1779880243000,-515.12873387,0.00034899,2]
[423134923,1779880243000,-515.12873387,0.00034899,2]
[423134925,1779880243000,-515.12873387,0.00034899,2]
[423134921,1779880243000,-394.96822842,0.00034899,2]
[423134922,1779880243000,-701.52644968,0.00034899,7]
[423134918,1779880243000,-515.12873387,0.00034899,2]
[423134920,1779880243000,-120.16050545,0.00034899,2]
[423134917,1779880243000,-291.06016944,0.00034899,7]
[423134931,1779880243000,-515.12873387,0.00034899,2]
[423134924,1779880243000,-701.52644968,0.00034899,7]
[423134919,1779880243000,-701.52644968,0.00034899,7]
[423134936,1779880243000,-701.52644968,0.00034899,7]
[423134930,1779880243000,-701.52644968,0.00034899,7]
[423134950,1779880243000,-515.12873387,0.00034899,2]
[423134946,1779880243000,-515.12873387,0.00034899,2]
[423134948,1779880243000,-515.12873387,0.00034899,2]
[423134939,1779880243000,-515.12873387,0.00034899,2]
[423134947,1779880243000,-701.52644968,0.00034899,7]
[423134944,1779880243000,-515.12873387,0.00034899,2]
[423134943,1779880243000,-701.52644968,0.00034899,7]
[423134932,1779880243000,-701.52644968,0.00034899,7]
[423134945,1779880243000,-701.52644968,0.00034899,7]
[423134949,1779880243000,-701.52644968,0.00034899,7]
[423134941,1779880243000,-515.12873387,0.00034899,2]
[423134940,1779880243000,-701.52644968,0.00034899,7]
[423134938,1779880243000,-701.52644968,0.00034899,7]
[423134933,1779880243000,-515.12873387,0.00034899,2]
[423134935,1779880243000,-515.12873387,0.00034899,2]
[423134942,1779880243000,-515.12873387,0.00034899,2]
[423134972,1779880244000,-515.12873387,0.00034899,2]
[423134977,1779880244000,-515.12873387,0.00034899,2]
[423134987,1779880244000,-701.52644968,0.00034899,7]
[423134976,1779880244000,-701.52644968,0.00034899,7]
[423134978,1779880244000,-701.52644968,0.00034899,7]
[423134979,1779880244000,-701.52644968,0.00034899,7]
[423134980,1779880244000,-515.12873387,0.00034899,2]
[423134985,1779880244000,-515.12873387,0.00034899,2]
[423134981,1779880244000,-701.52644968,0.00034899,7]
[423134982,1779880244000,-515.12873387,0.00034899,2]
[423134969,1779880244000,-701.52644968,0.00034899,7]
[423134983,1779880244000,-701.52644968,0.00034899,7]
[423134986,1779880244000,-515.12873387,0.00034899,2]
[423134989,1779880244000,-515.12873387,0.00034899,2]
[423134990,1779880244000,-515.12873387,0.00034899,2]
[423134992,1779880244000,-701.52644968,0.00034899,7]
[423134994,1779880244000,-701.52644968,0.00034899,7]
[423134984,1779880244000,-701.52644968,0.00034899,7]
[423134973,1779880244000,-701.52644968,0.00034899,7]
[423134967,1779880244000,-701.52644968,0.00034899,7]
[423134971,1779880244000,-701.52644968,0.00034899,7]
[423134951,1779880244000,-515.12873387,0.00034899,2]
[423134961,1779880244000,-515.12873387,0.00034899,2]
[423134962,1779880244000,-701.52644968,0.00034899,7]
[423134963,1779880244000,-515.12873387,0.00034899,2]
[423134953,1779880244000,-515.12873387,0.00034899,2]
[423134954,1779880244000,-701.52644968,0.00034899,7]
[423134952,1779880244000,-701.52644968,0.00034899,7]
[423134956,1779880244000,-701.52644968,0.00034899,7]
[423134955,1779880244000,-515.12873387,0.00034899,2]
[423134957,1779880244000,-701.52644968,0.00034899,7]
[423134959,1779880244000,-701.52644968,0.00034899,7]
[423134958,1779880244000,-515.12873387,0.00034899,2]
[423134960,1779880244000,-515.12873387,0.00034899,2]
[423134965,1779880244000,-701.52644968,0.00034899,7]
[423134964,1779880244000,-515.12873387,0.00034899,2]
[423134975,1779880244000,-515.12873387,0.00034899,2]
[423134966,1779880244000,-515.12873387,0.00034899,2]
[423134999,1779880244000,-701.52644968,0.00034899,7]
[423134970,1779880244000,-515.12873387,0.00034899,2]
[423134968,1779880244000,-515.12873387,0.00034899,2]
[423134996,1779880244000,-701.52644968,0.00034899,7]
[423134974,1779880244000,-515.12873387,0.00034899,2]
[423134997,1779880244000,-701.52644968,0.00034899,7]
[423135022,1779880244000,-55840.50282,0.00035081,2]
[423135023,1779880244000,-151.0,0.00035081,7]
[423135019,1779880244000,-151.0,0.00035,7]
[423135020,1779880244000,-12631.23027477,0.00035001,120]
[423135017,1779880244000,-151.0,0.00035,7]
[423135024,1779880244000,-151.0,0.00035081,7]
[423135021,1779880244000,-1679.26907648,0.00035022,2]
[423135026,1779880244000,-2508.4853477,0.00035126,2]
[423135029,1779880244000,-820.3070611,0.00035188,2]
[423135025,1779880244000,-151.0,0.00035081,7]
[423135028,1779880244000,-5000.0,0.00035181,2]
[423135033,1779880244000,-181.08973599,0.00035271,2]
[423135034,1779880244000,-500.0,0.00035279,30]
[423135030,1779880244000,-325.2744119,0.00035188,2]
[423135032,1779880244000,-5519.0,0.0003526,2]
[423135031,1779880244000,-177.88848839,0.00035214,2]
[423135036,1779880244000,-212923.00336699,0.0003528,2]
[423135037,1779880244000,-168.00157731,0.0003528,2]
[423135038,1779880244000,-673.3,0.0003528,2]
[423134993,1779880244000,-515.12873387,0.00034899,2]
[423135035,1779880244000,-500.0,0.00035279,30]
[423135027,1779880244000,-151.0,0.0003518,7]
[423134988,1779880244000,-701.52644968,0.00034899,7]
[423135018,1779880244000,-151.0,0.00035,7]
[423135001,1779880244000,-701.52644968,0.00034899,7]
[423134991,1779880244000,-701.52644968,0.00034899,7]
[423134995,1779880244000,-515.12873387,0.00034899,2]
[423135000,1779880244000,-701.52644968,0.00034899,7]
[423134998,1779880244000,-515.12873387,0.00034899,2]
[423135003,1779880244000,-701.52644968,0.00034899,7]
[423135015,1779880244000,-151.0,0.00035,7]
[423135002,1779880244000,-515.12873387,0.00034899,2]
[423135014,1779880244000,-151.0,0.00035,7]
[423135013,1779880244000,-167.538512,0.00035,7]
[423135004,1779880244000,-515.12873387,0.00034899,2]
[423135007,1779880244000,-2138.28252683,0.00035,120]
[423135006,1779880244000,-24354.3095124,0.00035,2]
[423135016,1779880244000,-151.0,0.00035,7]
[423135011,1779880244000,-151.0,0.00035,7]
[423135005,1779880244000,-929.35,0.0003499,10]
[423135008,1779880244000,-5179.97489641,0.00035,7]
[423135010,1779880244000,-151.0,0.00035,7]
[423135012,1779880244000,-151.0,0.00035,7]
[423135009,1779880244000,-33854.09152378,0.00035,7]
[423135041,1779880246000,-505.0,0.0003528,2]
[423135042,1779880246000,-10881.63196662,0.0003528,2]
[423135044,1779880246000,-7560.78717971,0.0003528,2]
[423135047,1779880246000,-621.10424563,0.0003528,2]
[423135046,1779880246000,-1893.12,0.0003528,2]
[423135045,1779880246000,-572.01969778,0.0003528,2]
[423135043,1779880246000,-95.35025813,0.0003528,2]
[423135065,1779880273000,518.0,0.00026,2]
[423135088,1779880476000,215.46156935,0.00029,2]
[423135087,1779880476000,150.42,0.00026445,2]
[423135093,1779880732000,-164.0,0.00029719,30]
[423135095,1779880732000,-12.0,0.0003,2]
[423135094,1779880732000,-152.0,0.00029873,3]
[423135097,1779880732000,-15.0,0.0003,2]
[423135096,1779880732000,-149.0,0.0003,2]
[423135098,1779880732000,-164.0,0.0003,2]
[423135104,1779880733000,-164.0,0.0003,2]
[423135103,1779880733000,-164.0,0.0003,2]
[423135102,1779880733000,-164.0,0.0003,2]
[423135101,1779880733000,-164.0,0.0003,2]
[423135100,1779880733000,-164.0,0.0003,2]
[423135099,1779880733000,-164.0,0.0003,2]
[423135105,1779880798000,-6416.32670824,0.0003,2]
[423135117,1779880895000,-200.0,0.0003199,30]
[423135120,1779880895000,-167.83851798,0.00032,120]
[423135115,1779880895000,-400.0,0.00031892,2]
[423135113,1779880895000,-157.88,0.00031818,30]
[423135108,1779880895000,-1000.0,0.00030137,10]
[423135111,1779880895000,-186.81,0.00030137,2]
[423135110,1779880895000,-188.0,0.00030137,2]
[423135118,1779880895000,-190.45112973,0.00032,120]
[423135109,1779880895000,-326.0,0.00030137,10]
[423135112,1779880895000,-166.0,0.00030719,30]
[423135114,1779880895000,-150.0,0.00031837,30]
[423135123,1779880895000,-150.0,0.00032429,7]
[423135119,1779880895000,-1380.017548,0.00032,120]
[423135122,1779880895000,-157.88,0.0003225,7]
[423135121,1779880895000,-167.83851798,0.00032,120]
[423135124,1779880895000,-152.0,0.00032594,4]
[423135125,1779880895000,-1113.86099455,0.00032644,120]
[423135126,1779880895000,-1386.13900545,0.00032644,120]
[423135128,1779880895000,-161.75,0.00032739,7]
[423135130,1779880895000,-1489.58,0.00032765,120]
[423135129,1779880895000,-175.27,0.00032743,120]
[423135116,1779880895000,-161.75,0.00031893,30]
[423135127,1779880895000,-157.88,0.00032683,2]
[423135131,1779880896000,-5002.08070881,0.000199,3]
[423135132,1779880897000,-1000.0,0.00032706,120]
[423135134,1779880898000,-166.76,0.00032201,30]
[423135133,1779880898000,-166.76,0.0003111,30]
[423135137,1779880899000,-500.0,0.00032615,2]
[423135135,1779880899000,-150.51,0.00016342,2]
[423135136,1779880899000,-150.51,0.00032685,2]
[423135138,1779881029000,-266.07103257,0.0001421,7]
[423135140,1779881104000,-150.0,0.000235,2]
[423135143,1779881223000,-150.0,0.00026,10]
[423135142,1779881223000,-150.0,0.00026,10]
[423135141,1779881223000,-150.0,0.00026,10]
[423135147,1779881224000,-2680.01400168,0.00026,10]
[423135146,1779881224000,-150.0,0.00026,10]
[423135145,1779881224000,-150.0,0.00026,10]
[423135144,1779881224000,-150.0,0.00026,10]
[423135149,1779881227000,-212.2606859,0.00031,120]
[423135148,1779881227000,-262.56900006,0.0003013,120]
[423135152,1779881294000,-250.0,0.00030958,2]
[423135153,1779881314000,-41.87221765,0.00031,120]
[423135154,1779881326000,-175.06906971,0.0003166,7]
[423135155,1779881368000,-531.16646725,0.0003166,7]
[423135157,1779881404000,1545.70527376,0.0003,7]
[423135156,1779881404000,727.07827244,0.0003,7]
[423135201,1779881442000,-150.0,0.0003166,7]
[423135197,1779881442000,-1300.0,0.0003166,7]
[423135198,1779881442000,-15.89633602,0.0003166,7]
[423135199,1779881442000,-134.10366398,0.0003166,7]
[423135200,1779881442000,-216.749532,0.0003166,7]
[423135203,1779881442000,-570.12893116,0.00031671,2]
[423135204,1779881442000,-15.54318212,0.00031999,3]
[423135205,1779881442000,-1584.45681788,0.00031999,3]
[423135208,1779881442000,-165.3,0.00032,2]
[423135206,1779881442000,-1144.96776129,0.00032,120]
[423135207,1779881442000,-190.45112973,0.00032,120]
[423135209,1779881442000,-2525.2863225,0.0003261,2]
[423135202,1779881442000,-1442.99431612,0.00031671,2]
[423135243,1779881443000,-500.0,0.00033163,2]
[423135260,1779881443000,-500.0,0.00033163,2]
[423135249,1779881443000,-14.9563344,0.00033163,2]
[423135259,1779881443000,-500.0,0.00033163,2]
[423135244,1779881443000,-500.0,0.00033163,2]
[423135241,1779881443000,-364.55378137,0.00033163,2]
[423135258,1779881443000,-500.0,0.00033163,2]
[423135245,1779881443000,-459.04202729,0.00033163,2]
[423135246,1779881443000,-40.95797271,0.00033163,2]
[423135247,1779881443000,-485.0436656,0.00033163,2]
[423135257,1779881443000,-500.0,0.00033163,2]
[423135250,1779881443000,-500.0,0.00033163,2]
[423135253,1779881443000,-500.0,0.00033163,2]
[423135256,1779881443000,-500.0,0.00033163,2]
[423135254,1779881443000,-500.0,0.00033163,2]
[423135255,1779881443000,-500.0,0.00033163,2]
[423135267,1779881443000,-500.0,0.00033163,2]
[423135264,1779881443000,-500.0,0.00033163,2]
[423135265,1779881443000,-309.1880751,0.00033163,2]
[423135261,1779881443000,-500.0,0.00033163,2]
[423135251,1779881443000,-409.94048329,0.00033163,2]
[423135240,1779881443000,-135.44621863,0.00033163,2]
[423135212,1779881443000,-155.08,0.00032899,120]
[423135228,1779881443000,-500.0,0.00033163,2]
[423135210,1779881443000,-2474.7136775,0.0003261,2]
[423135211,1779881443000,-1237.14,0.00032866,2]
[423135214,1779881443000,-248.13947186,0.00032947,120]
[423135213,1779881443000,-104.26052814,0.00032947,120]
[423135215,1779881443000,-1602.93334734,0.00032994,2]
[423135262,1779881443000,-500.0,0.00033163,2]
[423135216,1779881443000,-1144.96776129,0.00033,120]
[423135217,1779881443000,-190.45112973,0.00033,120]
[423135220,1779881443000,-157.88,0.00033116,30]
[423135239,1779881443000,-459.47134013,0.00033163,2]
[423135219,1779881443000,-152.33,0.00033073,120]
[423135221,1779881443000,-1825.97,0.00033136,2]
[423135223,1779881443000,-405.0,0.00033158,2]
[423135224,1779881443000,-42097.13,0.00033159,2]
[423135225,1779881443000,-165.8,0.00033159,2]
[423135230,1779881443000,-40.52865987,0.00033163,2]
[423135229,1779881443000,-500.0,0.00033163,2]
[423135222,1779881443000,-1549.71,0.00033138,2]
[423135227,1779881443000,-177.34932933,0.00033163,7]
[423135226,1779881443000,-500.0,0.00033163,2]
[423135218,1779881443000,-150.0,0.00033021,2]
[423135274,1779881443000,-207.86,0.00033526,7]
[423135252,1779881443000,-90.05951671,0.00033163,2]
[423135273,1779881443000,-207.68,0.00033526,7]
[423135294,1779881443000,-23638.0938779,0.00034257,2]
[423135301,1779881443000,-151.0,0.00034781,7]
[423135298,1779881443000,-161.75,0.00034432,30]
[423135289,1779881443000,-1825.97,0.00033964,2]
[423135299,1779881443000,-2066.0,0.00034559,3]
[423135296,1779881443000,-166.76,0.00034384,30]
[423135297,1779881443000,-157.88,0.00034415,30]
[423135300,1779881443000,-2500.0,0.000347,2]
[423135314,1779881443000,-243.12156701,0.00034879,7]
[423135303,1779881443000,-5000.0,0.00034781,2]
[423135312,1779881443000,-500.0,0.00034879,7]
[423135310,1779881443000,-151.0,0.000348,7]
[423135302,1779881443000,-151.0,0.00034781,7]
[423135313,1779881443000,-381.85536069,0.00034879,7]
[423135309,1779881443000,-10305.1062112,0.000348,2]
[423135308,1779881443000,-546.87137406,0.000348,2]
[423135307,1779881443000,-150.0,0.00034797,2]
[423135304,1779881443000,-237.24184,0.0003479,120]
[423135306,1779881443000,-1825.97,0.00034792,2]
[423135263,1779881443000,-500.0,0.00033163,2]
[423135311,1779881443000,-157.88,0.00034848,7]
[423135293,1779881443000,-150.0,0.00034205,7]
[423135295,1779881443000,-350.0,0.00034368,2]
[423135305,1779881443000,-237.24184,0.0003479,21]
[423135292,1779881443000,-1169.257,0.00033982,37]
[423135269,1779881443000,-500.0,0.00033163,2]
[423135291,1779881443000,-170.052,0.00033982,37]
[423135266,1779881443000,-500.0,0.00033163,2]
[423135271,1779881443000,-365.39428052,0.00033165,2]
[423135268,1779881443000,-500.0,0.00033163,2]
[423135272,1779881443000,-166.76,0.00033293,30]
[423135270,1779881443000,-14629.19753955,0.00033165,2]
[423135285,1779881443000,-1049.75152746,0.00033883,2]
[423135278,1779881443000,-219.31,0.00033549,7]
[423135287,1779881443000,-1144.96776129,0.000339,120]
[423135286,1779881443000,-208.97895572,0.000339,120]
[423135283,1779881443000,-166.57,0.00033748,2]
[423135284,1779881443000,-350.0,0.00033793,2]
[423135277,1779881443000,-207.84,0.00033549,7]
[423135282,1779881443000,-150.0,0.00033613,30]
[423135275,1779881443000,-223.49,0.00033526,7]
[423135281,1779881443000,-239.79482419,0.00033603,2]
[423135276,1779881443000,-157.88,0.00033549,7]
[423135279,1779881443000,-226.01,0.00033549,7]
[423135280,1779881443000,-161.75,0.00033586,2]
[423135288,1779881443000,-166.6,0.0003394,2]
[423135290,1779881443000,-157.88,0.00033982,2]
[423135350,1779881444000,-5001.62399452,0.00035,30]
[423135351,1779881444000,-7243.4166513,0.00035073,2]
[423135352,1779881444000,-912.2920339,0.00035073,2]
[423135349,1779881444000,-199.66518691,0.00035,30]
[423135348,1779881444000,-1144.96776129,0.00035,120]
[423135344,1779881444000,-2617.5056124,0.00034907,2]
[423135353,1779881444000,-10000.0,0.0003508,2]
[423135346,1779881444000,-18628.0,0.00035,2]
[423135356,1779881444000,-300.0,0.00035179,10]
[423135354,1779881444000,-300.0,0.00035179,10]
[423135343,1779881444000,-250.0,0.00034881,30]
[423135367,1779881444000,-1683.21186327,0.00035212,7]
[423135362,1779881444000,-1389106.193,0.0003518,2]
[423135361,1779881444000,-30905.82046481,0.0003518,5]
[423135360,1779881444000,-539.71,0.00035179,7]
[423135359,1779881444000,-500.0,0.00035179,7]
[423135364,1779881444000,-197.117964,0.0003518,7]
[423135357,1779881444000,-300.0,0.00035179,10]
[423135355,1779881444000,-300.0,0.00035179,10]
[423135363,1779881444000,-151.0,0.0003518,7]
[423135358,1779881444000,-500.0,0.00035179,7]
[423135365,1779881444000,-2000.0,0.00035181,2]
[423135368,1779881444000,-536.91514743,0.00035226,120]
[423135370,1779881444000,-161.77,0.00035279,7]
[423135371,1779881444000,-1000.0,0.00035279,2]
[423135345,1779881444000,-221.0,0.00035,30]
[423135366,1779881444000,-152.0,0.00035194,7]
[423135347,1779881444000,-252.0,0.00035,2]
[423135323,1779881444000,-500.0,0.0003488,120]
[423135331,1779881444000,-500.0,0.0003488,7]
[423135372,1779881444000,-500.0,0.0003528,2]
[423135327,1779881444000,-151.0,0.0003488,7]
[423135315,1779881444000,-500.0,0.00034879,7]
[423135317,1779881444000,-646.79938097,0.00034879,7]
[423135325,1779881444000,-456.79764672,0.0003488,120]
[423135316,1779881444000,-500.0,0.00034879,7]
[423135318,1779881444000,-348.65630394,0.00034879,7]
[423135320,1779881444000,-152.43213744,0.0003488,120]
[423135321,1779881444000,-500.0,0.0003488,120]
[423135326,1779881444000,-151.0,0.0003488,7]
[423135319,1779881444000,-500.0,0.00034879,7]
[423135322,1779881444000,-500.0,0.0003488,120]
[423135342,1779881444000,-151.0,0.00034881,7]
[423135324,1779881444000,-500.0,0.0003488,120]
[423135337,1779881444000,-151.0,0.00034881,7]
[423135340,1779881444000,-151.0,0.00034881,7]
[423135328,1779881444000,-624.04,0.0003488,120]
[423135339,1779881444000,-217.25818,0.00034881,7]
[423135330,1779881444000,-500.0,0.0003488,7]
[423135341,1779881444000,-151.0,0.00034881,7]
[423135336,1779881444000,-151.0,0.00034881,7]
[423135335,1779881444000,-43981.93348438,0.0003488,4]
[423135332,1779881444000,-500.0,0.0003488,7]
[423135333,1779881444000,-500.0,0.0003488,7]
[423135334,1779881444000,-500.0,0.0003488,7]
[423135338,1779881444000,-151.0,0.00034881,7]
[423135329,1779881444000,-500.0,0.0003488,7]
[423135380,1779881444000,-150.0,0.0003539,30]
[423135420,1779881444000,-300.0,0.000355,2]
[423135382,1779881444000,-2135.8,0.000354,14]
[423135406,1779881444000,-578.28315025,0.000355,2]
[423135409,1779881444000,-300.0,0.000355,2]
[423135419,1779881444000,-300.0,0.000355,2]
[423135421,1779881444000,-300.0,0.000355,2]
[423135422,1779881444000,-300.0,0.000355,2]
[423135410,1779881444000,-300.0,0.000355,2]
[423135408,1779881444000,-452.52893397,0.000355,2]
[423135411,1779881444000,-300.0,0.000355,2]
[423135415,1779881444000,-300.0,0.000355,2]
[423135413,1779881444000,-300.0,0.000355,2]
[423135416,1779881444000,-300.0,0.000355,2]
[423135417,1779881444000,-484.76763572,0.000355,2]
[423135400,1779881444000,-300.0,0.000355,2]
[423135425,1779881444000,-1096.2926835,0.000355,2]
[423135424,1779881444000,-300.0,0.000355,2]
[423135427,1779881444000,-300.0,0.000355,2]
[423135435,1779881444000,-300.0,0.000355,2]
[423135426,1779881444000,-300.0,0.000355,2]
[423135428,1779881444000,-300.0,0.000355,2]
[423135429,1779881444000,-300.0,0.000355,2]
[423135430,1779881444000,-300.0,0.000355,2]
[423135432,1779881444000,-300.0,0.000355,2]
[423135433,1779881444000,-300.0,0.000355,2]
[423135431,1779881444000,-300.0,0.000355,2]
[423135434,1779881444000,-300.0,0.000355,2]
[423135379,1779881444000,-1105.18419788,0.0003539,30]
[423135423,1779881444000,-300.0,0.000355,2]
[423135403,1779881444000,-379.1644297,0.000355,2]
[423135418,1779881444000,-310.28230408,0.000355,2]
[423135401,1779881444000,-594.79850986,0.000355,2]
[423135404,1779881444000,-464.48677942,0.000355,2]
[423135375,1779881444000,-10305.1062112,0.00035305,2]
[423135374,1779881444000,-157.88,0.00035281,2]
[423135373,1779881444000,-703.0,0.00035281,5]
[423135378,1779881444000,-151.0,0.00035381,2]
[423135381,1779881444000,-176.73,0.000354,7]
[423135377,1779881444000,-350.0,0.00035345,2]
[423135383,1779881444000,-150.0,0.00035415,30]
[423135388,1779881444000,-445.6916,0.00035491,67]
[423135393,1779881444000,-445.6916,0.00035491,67]
[423135394,1779881444000,-250.0,0.00035495,7]
[423135390,1779881444000,-445.69161,0.00035491,67]
[423135391,1779881444000,-445.69161,0.00035491,67]
[423135392,1779881444000,-445.6916,0.00035491,67]
[423135376,1779881444000,-152.0,0.00035315,5]
[423135407,1779881444000,-300.0,0.000355,2]
[423135384,1779881444000,-250.46341063,0.00035448,120]
[423135405,1779881444000,-300.0,0.000355,2]
[423135402,1779881444000,-300.0,0.000355,2]
[423135398,1779881444000,-300.0,0.00035499,10]
[423135397,1779881444000,-300.0,0.00035499,10]
[423135399,1779881444000,-47.51831565,0.000355,2]
[423135385,1779881444000,-3826.5122544,0.00035477,2]
[423135389,1779881444000,-445.69161,0.00035491,67]
[423135395,1779881444000,-300.0,0.00035497,10]
[423135387,1779881444000,-3637.867497,0.00035491,2]
[423135386,1779881444000,-260.06277447,0.00035479,30]
[423135396,1779881444000,-151.0,0.00035498,7]
[423135473,1779881445000,-300.09384644,0.000355,2]
[423135482,1779881445000,-300.0,0.000355,2]
[423135472,1779881445000,-950.32029804,0.000355,2]
[423135479,1779881445000,-1634.44392223,0.000355,2]
[423135471,1779881445000,-865.6208675,0.000355,2]
[423135468,1779881445000,-300.0,0.000355,2]
[423135469,1779881445000,-300.0,0.000355,2]
[423135462,1779881445000,-300.0,0.000355,2]
[423135465,1779881445000,-344.45437934,0.000355,2]
[423135470,1779881445000,-300.0,0.000355,2]
[423135474,1779881445000,-300.0,0.000355,2]
[423135467,1779881445000,-372.88318182,0.000355,2]
[423135481,1779881445000,-300.0,0.000355,2]
[423135485,1779881445000,-300.0,0.000355,2]
[423135478,1779881445000,-300.0,0.000355,2]
[423135483,1779881445000,-594.79850986,0.000355,2]
[423135477,1779881445000,-300.0,0.000355,2]
[423135475,1779881445000,-1148.83589152,0.000355,2]
[423135480,1779881445000,-300.0,0.000355,2]
[423135484,1779881445000,-300.0,0.000355,2]
[423135486,1779881445000,-464.48677942,0.000355,2]
[423135487,1779881445000,-300.0,0.000355,2]
[423135488,1779881445000,-578.28315025,0.000355,2]
[423135489,1779881445000,-300.0,0.000355,2]
[423135491,1779881445000,-300.0,0.000355,2]
[423135492,1779881445000,-300.0,0.000355,2]
[423135476,1779881445000,-310.02493426,0.000355,2]
[423135466,1779881445000,-527.62572404,0.000355,2]
[423135436,1779881445000,-300.0,0.000355,2]
[423135463,1779881445000,-1263.96825586,0.000355,2]
[423135437,1779881445000,-300.0,0.000355,2]
[423135448,1779881445000,-1068.40163352,0.000355,2]
[423135438,1779881445000,-300.0,0.000355,2]
[423135439,1779881445000,-493.38669858,0.000355,2]
[423135446,1779881445000,-300.0,0.000355,2]
[423135444,1779881445000,-300.0,0.000355,2]
[423135447,1779881445000,-528.48327171,0.000355,2]